[Event "Late-Titled-Tuesday-Blitz-March-05-2024"]
[Site "Chess.com"]
[Date "2024.03.05"]
[Round "4"]
[White "mishanick"]
[Black "reevecanada"]
[Result "1-0"]
[WhiteElo "3070"]
[BlackElo "2611"]
[TimeControl "180+1"]
[EndTime "14:38:56 PST"]
[Termination "mishanick won by checkmate"]

1. d4 {[%clk 0:03:00.9]} 1... Nf6 {[%clk 0:02:50.1]} 2. c4 {[%clk 0:03:01.8]}
2... c6 {[%clk 0:02:49.6]} 3. Nf3 {[%clk 0:03:01.8]} 3... d5 {[%clk 0:02:50.1]}
4. Nc3 {[%clk 0:03:01.8]} 4... dxc4 {[%clk 0:02:50.2]} 5. e4 {[%clk 0:03:00.8]}
5... b5 {[%clk 0:02:50.2]} 6. Be2 {[%clk 0:03:00.2]} 6... Bb7 {[%clk 0:02:47.3]}
7. O-O {[%clk 0:02:59.3]} 7... Nbd7 {[%clk 0:02:47.1]} 8. a4 {[%clk 0:02:56.6]}
8... a6 {[%clk 0:02:45.6]} 9. e5 {[%clk 0:02:53.2]} 9... Nd5 {[%clk 0:02:43.7]}
10. e6 {[%clk 0:02:53.9]} 10... N7f6 {[%clk 0:02:35.9]} 11. Ng5 {[%clk
0:02:54.5]} 11... fxe6 {[%clk 0:02:34.7]} 12. Nxe6 {[%clk 0:02:39.4]} 12... Qb6
{[%clk 0:02:15.9]} 13. a5 {[%clk 0:02:36.4]} 13... Qa7 {[%clk 0:02:10.6]} 14.
Bg5 {[%clk 0:02:36.9]} 14... Bc8 {[%clk 0:01:55.7]} 15. Bg4 {[%clk 0:02:17.8]}
15... Nxg4 {[%clk 0:01:30.5]} 16. Qxg4 {[%clk 0:02:18.7]} 16... Bxe6 {[%clk
0:01:29.8]} 17. Qxe6 {[%clk 0:02:18.3]} 17... Qd7 {[%clk 0:01:29.8]} 18. Qe4
{[%clk 0:02:14.8]} 18... O-O-O {[%clk 0:01:26.9]} 19. Rfe1 {[%clk 0:02:07.2]}
19... Re8 {[%clk 0:01:26.2]} 20. Qf3 {[%clk 0:01:47.7]} 20... e6 {[%clk
0:01:20.6]} 21. Ne4 {[%clk 0:01:48.2]} 21... Bb4 {[%clk 0:01:16.7]} 22. Re2
{[%clk 0:01:48.2]} 22... Rhf8 {[%clk 0:01:01.9]} 23. Qg3 {[%clk 0:01:48]} 23...
Rf5 {[%clk 0:00:56.7]} 24. Bd2 {[%clk 0:01:47.8]} 24... Bf8 {[%clk 0:00:42.5]}
25. b3 {[%clk 0:01:47.5]} 25... Nf6 {[%clk 0:00:29.7]} 26. Nxf6 {[%clk
0:01:38.8]} 26... gxf6 {[%clk 0:00:30.6]} 27. bxc4 {[%clk 0:01:36.6]} 27... Qxd4
{[%clk 0:00:30]} 28. Rc1 {[%clk 0:01:31.9]} 28... Bd6 {[%clk 0:00:30.2]} 29. Qb3
{[%clk 0:01:22.6]} 29... Kd7 {[%clk 0:00:23.4]} 30. cxb5 {[%clk 0:01:16.3]}
30... Rxb5 {[%clk 0:00:24.3]} 31. Qc2 {[%clk 0:01:14]} 31... Rc5 {[%clk
0:00:23.2]} 32. Qxh7+ {[%clk 0:01:14]} 32... Re7 {[%clk 0:00:23.2]} 33. Qb1
{[%clk 0:01:14.3]} 33... Rxc1+ {[%clk 0:00:22.4]} 34. Qxc1 {[%clk 0:01:12.4]}
34... Rg7 {[%clk 0:00:22.2]} 35. Be3 {[%clk 0:01:08.3]} 35... Qg4 {[%clk
0:00:20.7]} 36. Qf1 {[%clk 0:00:57.2]} 36... Kc8 {[%clk 0:00:12]} 37. Rd2 {[%clk
0:00:54.7]} 37... Kc7 {[%clk 0:00:09.5]} 38. Bb6+ {[%clk 0:00:53.6]} 38... Kd7
{[%clk 0:00:10.1]} 39. Bc5 {[%clk 0:00:49.9]} 39... Kc8 {[%clk 0:00:03.1]} 40.
Rxd6 {[%clk 0:00:49.7]} 40... Kb7 {[%clk 0:00:02.9]} 41. Rd4 {[%clk 0:00:47.4]}
41... Qf5 {[%clk 0:00:02.3]} 42. Rb4+ {[%clk 0:00:47.8]} 42... Kc8 {[%clk
0:00:02.4]} 43. Qxa6+ {[%clk 0:00:47.1]} 43... Kd8 {[%clk 0:00:03.1]} 44. Rb8+
{[%clk 0:00:47.1]} 44... Kd7 {[%clk 0:00:03.6]} 45. Qb7# {[%clk 0:00:47.5]} 1-0

[Event "Late-Titled-Tuesday-Blitz-March-05-2024"]
[Site "Chess.com"]
[Date "2024.03.05"]
[Round "4"]
[White "madstalk3rs"]
[Black "DonJuan_34"]
[Result "1-0"]
[WhiteElo "2653"]
[BlackElo "2458"]
[TimeControl "180+1"]
[EndTime "14:38:56 PST"]
[Termination "madstalk3rs won by resignation"]

1. e4 {[%clk 0:03:00.1]} 1... e6 {[%clk 0:02:59.8]} 2. d4 {[%clk 0:02:59.9]}
2... d5 {[%clk 0:02:59.7]} 3. e5 {[%clk 0:03:00.8]} 3... c5 {[%clk 0:02:59.6]}
4. c3 {[%clk 0:03:01.6]} 4... Nc6 {[%clk 0:02:59.8]} 5. Nf3 {[%clk 0:03:02.4]}
5... Nge7 {[%clk 0:02:55.6]} 6. Na3 {[%clk 0:02:59.9]} 6... cxd4 {[%clk
0:02:54.2]} 7. cxd4 {[%clk 0:03:00]} 7... Nf5 {[%clk 0:02:54.8]} 8. Nc2 {[%clk
0:02:59.9]} 8... Qb6 {[%clk 0:02:54.2]} 9. Bd3 {[%clk 0:02:57.9]} 9... Bd7
{[%clk 0:02:50.7]} 10. O-O {[%clk 0:02:57.8]} 10... Na5 {[%clk 0:02:50.2]} 11.
Bxf5 {[%clk 0:02:52.4]} 11... exf5 {[%clk 0:02:50.1]} 12. Ne3 {[%clk 0:02:48.1]}
12... Be6 {[%clk 0:02:49.3]} 13. b3 {[%clk 0:02:44.2]} 13... Be7 {[%clk
0:02:48.1]} 14. Bd2 {[%clk 0:02:40.5]} 14... O-O {[%clk 0:02:46.7]} 15. Ne1
{[%clk 0:02:41.1]} 15... Nc6 {[%clk 0:02:42.9]} 16. Bc3 {[%clk 0:02:39.3]} 16...
f4 {[%clk 0:02:15.6]} 17. N3c2 {[%clk 0:02:34.6]} 17... Rac8 {[%clk 0:02:13.1]}
18. Bb2 {[%clk 0:02:23.8]} 18... f6 {[%clk 0:02:10.2]} 19. Nd3 {[%clk
0:02:11.8]} 19... fxe5 {[%clk 0:02:08]} 20. Nxe5 {[%clk 0:02:12.3]} 20... Nxe5
{[%clk 0:02:05.7]} 21. dxe5 {[%clk 0:02:13.2]} 21... f3 {[%clk 0:02:01.1]} 22.
g3 {[%clk 0:01:57.9]} 22... Bh3 {[%clk 0:01:38.2]} 23. Re1 {[%clk 0:01:51.7]}
23... Bc5 {[%clk 0:01:26.6]} 24. Bd4 {[%clk 0:01:38]} 24... Bf5 {[%clk
0:01:10.4]} 25. Bxc5 {[%clk 0:01:31]} 25... Qxc5 {[%clk 0:01:10.1]} 26. Nd4
{[%clk 0:01:30.6]} 26... Rce8 {[%clk 0:00:31.6]} 27. Rc1 {[%clk 0:01:23.1]}
27... Qa5 {[%clk 0:00:27.8]} 28. b4 {[%clk 0:01:21.6]} 28... Qxa2 {[%clk
0:00:23]} 29. Rc7 {[%clk 0:00:41.3]} 29... Qb2 {[%clk 0:00:22.6]} 30. Nxf5
{[%clk 0:00:40.5]} 30... Rxf5 {[%clk 0:00:21.9]} 31. Qxd5+ {[%clk 0:00:41.1]}
31... Kh8 {[%clk 0:00:20.6]} 32. Qd7 {[%clk 0:00:37.5]} 32... Rg8 {[%clk
0:00:08.5]} 33. Qxf5 {[%clk 0:00:36.1]} 33... Qxb4 {[%clk 0:00:09.1]} 34. Rec1
{[%clk 0:00:30]} 34... a5 {[%clk 0:00:08.7]} 35. Rc8 {[%clk 0:00:29.8]} 35...
Qb3 {[%clk 0:00:08]} 36. Rxg8+ {[%clk 0:00:29.1]} 1-0

[Event "Late-Titled-Tuesday-Blitz-March-05-2024"]
[Site "Chess.com"]
[Date "2024.03.05"]
[Round "4"]
[White "Kopytkin"]
[Black "PawnEatingZombie"]
[Result "1-0"]
[WhiteElo "2446"]
[BlackElo "2172"]
[TimeControl "180+1"]
[EndTime "14:38:58 PST"]
[Termination "Kopytkin won on time"]

1. e4 {[%clk 0:03:00.9]} 1... d6 {[%clk 0:02:58.8]} 2. d4 {[%clk 0:03:00.1]}
2... Nf6 {[%clk 0:02:59.2]} 3. Nc3 {[%clk 0:02:59]} 3... e5 {[%clk 0:02:59.6]}
4. d5 {[%clk 0:02:58]} 4... Be7 {[%clk 0:02:56.2]} 5. f4 {[%clk 0:02:47.9]} 5...
exf4 {[%clk 0:02:54.7]} 6. Bxf4 {[%clk 0:02:47.5]} 6... Ng4 {[%clk 0:02:54.8]}
7. Nf3 {[%clk 0:02:46.4]} 7... Bf6 {[%clk 0:02:39.8]} 8. Bd3 {[%clk 0:02:45.2]}
8... Nd7 {[%clk 0:02:33.2]} 9. O-O {[%clk 0:02:41.4]} 9... O-O {[%clk
0:02:29.7]} 10. Rb1 {[%clk 0:02:30.2]} 10... Re8 {[%clk 0:02:11.4]} 11. Ne2
{[%clk 0:02:28.9]} 11... c6 {[%clk 0:02:02.6]} 12. dxc6 {[%clk 0:02:02.3]} 12...
bxc6 {[%clk 0:02:01.4]} 13. Kh1 {[%clk 0:02:02.5]} 13... Qb6 {[%clk 0:01:54.7]}
14. Qe1 {[%clk 0:02:01]} 14... Nge5 {[%clk 0:01:29.7]} 15. Qg3 {[%clk
0:01:48.9]} 15... g6 {[%clk 0:01:14.8]} 16. Bg5 {[%clk 0:01:19.3]} 16... Bg7
{[%clk 0:01:11.4]} 17. Qh4 {[%clk 0:01:19.5]} 17... Ba6 {[%clk 0:00:43.9]} 18.
Nxe5 {[%clk 0:01:09.7]} 18... Nxe5 {[%clk 0:00:42.6]} 19. Bf6 {[%clk 0:01:06.4]}
19... Bxf6 {[%clk 0:00:34]} 20. Qxf6 {[%clk 0:01:05.8]} 20... Bxd3 {[%clk
0:00:33.8]} 21. cxd3 {[%clk 0:01:05.5]} 21... Qd8 {[%clk 0:00:20.9]} 22. Qf4
{[%clk 0:00:59.2]} 22... c5 {[%clk 0:00:18]} 23. d4 {[%clk 0:00:55]} 23... cxd4
{[%clk 0:00:17.2]} 24. Nxd4 {[%clk 0:00:55.9]} 24... Qe7 {[%clk 0:00:15.2]} 25.
Rbe1 {[%clk 0:00:55.1]} 25... Rab8 {[%clk 0:00:13.5]} 26. Qg3 {[%clk 0:00:53]}
26... Kh8 {[%clk 0:00:10.6]} 27. b3 {[%clk 0:00:50]} 27... Rb4 {[%clk
0:00:09.8]} 28. Qc3 {[%clk 0:00:49.7]} 28... Rbb8 {[%clk 0:00:08.8]} 29. Rc1
{[%clk 0:00:32.9]} 29... Kg8 {[%clk 0:00:07.8]} 30. Qg3 {[%clk 0:00:29.8]} 30...
Kh8 {[%clk 0:00:06.6]} 31. Rcd1 {[%clk 0:00:27.9]} 31... Rbc8 {[%clk 0:00:04.8]}
32. Nf3 {[%clk 0:00:25.9]} 32... Rc3 {[%clk 0:00:04]} 33. Qe1 {[%clk 0:00:20.5]}
1-0

[Event "Late-Titled-Tuesday-Blitz-March-05-2024"]
[Site "Chess.com"]
[Date "2024.03.05"]
[Round "4"]
[White "Echecmat"]
[Black "Tugrik1969"]
[Result "0-1"]
[WhiteElo "2534"]
[BlackElo "2416"]
[TimeControl "180+1"]
[EndTime "14:39:02 PST"]
[Termination "Tugrik1969 won on time"]

1. b3 {[%clk 0:03:00.9]} 1... d5 {[%clk 0:02:51.6]} 2. Bb2 {[%clk 0:03:01.8]}
2... c5 {[%clk 0:02:51.8]} 3. e3 {[%clk 0:03:00.3]} 3... a6 {[%clk 0:02:50]} 4.
Nf3 {[%clk 0:02:59.5]} 4... Nc6 {[%clk 0:02:49.8]} 5. d4 {[%clk 0:03:00]} 5...
cxd4 {[%clk 0:02:49.3]} 6. Nxd4 {[%clk 0:03:00.1]} 6... Nf6 {[%clk 0:02:47]} 7.
c4 {[%clk 0:02:54.5]} 7... e6 {[%clk 0:02:40.5]} 8. Nxc6 {[%clk 0:02:50.7]} 8...
bxc6 {[%clk 0:02:40.3]} 9. Nd2 {[%clk 0:02:25.8]} 9... Bb4 {[%clk 0:02:33.8]}
10. a3 {[%clk 0:02:24.9]} 10... Bd6 {[%clk 0:02:33.4]} 11. Bd3 {[%clk
0:02:21.7]} 11... e5 {[%clk 0:02:30.3]} 12. O-O {[%clk 0:02:04.7]} 12... O-O
{[%clk 0:02:28.7]} 13. Rc1 {[%clk 0:01:59.8]} 13... Qe7 {[%clk 0:02:22.2]} 14.
b4 {[%clk 0:01:55.8]} 14... Bg4 {[%clk 0:02:09.6]} 15. Be2 {[%clk 0:01:52.2]}
15... Bf5 {[%clk 0:01:50.9]} 16. cxd5 {[%clk 0:01:40.9]} 16... cxd5 {[%clk
0:01:50.2]} 17. Rc6 {[%clk 0:01:41.5]} 17... a5 {[%clk 0:01:41.7]} 18. Nc4
{[%clk 0:01:39.5]} 18... dxc4 {[%clk 0:01:30.3]} 19. Qxd6 {[%clk 0:00:55]} 19...
Qxd6 {[%clk 0:01:29.1]} 20. Rxd6 {[%clk 0:00:55.9]} 20... axb4 {[%clk
0:01:20.7]} 21. Bxc4 {[%clk 0:00:36]} 21... bxa3 {[%clk 0:01:20]} 22. Bxe5
{[%clk 0:00:36.6]} 22... Rfc8 {[%clk 0:01:07.8]} 23. Bb3 {[%clk 0:00:21.1]}
23... Ne4 {[%clk 0:01:00.3]} 24. Rd4 {[%clk 0:00:16.6]} 24... Nc5 {[%clk
0:00:47.8]} 25. Bd5 {[%clk 0:00:14.7]} 25... Ra4 {[%clk 0:00:41.3]} 26. Rxa4
{[%clk 0:00:11.8]} 26... Nxa4 {[%clk 0:00:41.4]} 27. e4 {[%clk 0:00:10.4]} 27...
Be6 {[%clk 0:00:30.3]} 28. Ra1 {[%clk 0:00:08.9]} 28... Bxd5 {[%clk 0:00:25.7]}
29. exd5 {[%clk 0:00:08.5]} 29... Nb6 {[%clk 0:00:19.5]} 0-1

[Event "Late-Titled-Tuesday-Blitz-March-05-2024"]
[Site "Chess.com"]
[Date "2024.03.05"]
[Round "4"]
[White "OPQRC"]
[Black "HamedWafa4"]
[Result "1-0"]
[WhiteElo "2567"]
[BlackElo "2733"]
[TimeControl "180+1"]
[EndTime "14:39:05 PST"]
[Termination "OPQRC won by resignation"]

1. e4 {[%clk 0:03:00.9]} 1... e5 {[%clk 0:02:54.7]} 2. Nf3 {[%clk 0:03:00.6]}
2... Nc6 {[%clk 0:02:54.8]} 3. Bc4 {[%clk 0:02:59.2]} 3... Bc5 {[%clk
0:02:51.2]} 4. b4 {[%clk 0:02:51.4]} 4... Bxb4 {[%clk 0:02:47.5]} 5. c3 {[%clk
0:02:51.6]} 5... Be7 {[%clk 0:02:39.4]} 6. d4 {[%clk 0:02:50.8]} 6... Na5 {[%clk
0:02:39.7]} 7. Nxe5 {[%clk 0:02:49.8]} 7... Nxc4 {[%clk 0:02:39.6]} 8. Nxc4
{[%clk 0:02:50.7]} 8... d5 {[%clk 0:02:39.6]} 9. exd5 {[%clk 0:02:51.6]} 9...
Nf6 {[%clk 0:02:39.7]} 10. d6 {[%clk 0:02:47]} 10... cxd6 {[%clk 0:02:39.3]} 11.
O-O {[%clk 0:02:46.7]} 11... O-O {[%clk 0:02:39.2]} 12. Ne3 {[%clk 0:02:45.5]}
12... Re8 {[%clk 0:02:33.7]} 13. c4 {[%clk 0:02:44.5]} 13... d5 {[%clk 0:02:32]}
14. c5 {[%clk 0:02:37.2]} 14... b6 {[%clk 0:02:30.6]} 15. Ba3 {[%clk 0:02:10.7]}
15... Ne4 {[%clk 0:02:21.1]} 16. cxb6 {[%clk 0:02:03.3]} 16... axb6 {[%clk
0:02:12.2]} 17. Bxe7 {[%clk 0:02:02.9]} 17... Rxe7 {[%clk 0:02:12.9]} 18. Qb3
{[%clk 0:01:53.1]} 18... Ba6 {[%clk 0:01:32.4]} 19. Rd1 {[%clk 0:01:38.1]} 19...
Nf6 {[%clk 0:01:27.7]} 20. Nc3 {[%clk 0:01:33.5]} 20... Bb7 {[%clk 0:01:23.1]}
21. a4 {[%clk 0:01:22.4]} 21... Rc8 {[%clk 0:01:19.6]} 22. Rac1 {[%clk
0:01:18.4]} 22... Re8 {[%clk 0:01:03.6]} 23. h3 {[%clk 0:00:44.6]} 23... Qd7
{[%clk 0:01:01.4]} 24. Qxb6 {[%clk 0:00:36.9]} 24... Rc6 {[%clk 0:00:57.8]} 25.
Qb5 {[%clk 0:00:34]} 25... Rec8 {[%clk 0:00:52.5]} 26. Ncxd5 {[%clk 0:00:21]}
26... Nxd5 {[%clk 0:00:51.8]} 27. Nxd5 {[%clk 0:00:20.7]} 27... Ba8 {[%clk
0:00:13.5]} 28. Nb6 {[%clk 0:00:16.6]} 28... Qc7 {[%clk 0:00:11.6]} 29. Nxc8
{[%clk 0:00:13.5]} 29... Qxc8 {[%clk 0:00:08.8]} 30. Rxc6 {[%clk 0:00:13]} 30...
Bxc6 {[%clk 0:00:09.7]} 31. Rc1 {[%clk 0:00:07.7]} 31... Qe8 {[%clk 0:00:09.5]}
32. Qxc6 {[%clk 0:00:07.2]} 1-0

[Event "Late-Titled-Tuesday-Blitz-March-05-2024"]
[Site "Chess.com"]
[Date "2024.03.05"]
[Round "4"]
[White "norwaytoadog"]
[Black "ccccvhhhj"]
[Result "1-0"]
[WhiteElo "2278"]
[BlackElo "2456"]
[TimeControl "180+1"]
[EndTime "14:39:06 PST"]
[Termination "norwaytoadog won by checkmate"]

1. e4 {[%clk 0:02:59.8]} 1... e6 {[%clk 0:03:00.3]} 2. d4 {[%clk 0:02:59.5]}
2... d5 {[%clk 0:03:01.2]} 3. Nc3 {[%clk 0:02:59.3]} 3... Bb4 {[%clk 0:03:01]}
4. e5 {[%clk 0:02:59.2]} 4... c5 {[%clk 0:03:01.2]} 5. a3 {[%clk 0:02:59.5]}
5... Bxc3+ {[%clk 0:03:01.9]} 6. bxc3 {[%clk 0:02:59.7]} 6... Ne7 {[%clk
0:03:02.8]} 7. h4 {[%clk 0:02:59.4]} 7... Nbc6 {[%clk 0:02:59.6]} 8. h5 {[%clk
0:02:58.9]} 8... h6 {[%clk 0:02:59.7]} 9. Qg4 {[%clk 0:02:57.1]} 9... Kf8 {[%clk
0:03:00.1]} 10. Rb1 {[%clk 0:02:54.9]} 10... Qa5 {[%clk 0:02:59.5]} 11. Rh3
{[%clk 0:02:44]} 11... Qa4 {[%clk 0:02:50.4]} 12. Qd1 {[%clk 0:02:02.4]} 12...
cxd4 {[%clk 0:02:43.4]} 13. Bb5 {[%clk 0:01:55.3]} 13... Qa5 {[%clk 0:02:43.4]}
14. Bd2 {[%clk 0:01:51.6]} 14... dxc3 {[%clk 0:02:37.1]} 15. Bxc3 {[%clk
0:01:48.7]} 15... Qc7 {[%clk 0:02:37.3]} 16. f4 {[%clk 0:01:39.2]} 16... d4
{[%clk 0:02:18.7]} 17. Bxd4 {[%clk 0:01:25.9]} 17... Nxd4 {[%clk 0:02:18.6]} 18.
Qxd4 {[%clk 0:01:22.3]} 18... Nf5 {[%clk 0:01:41.7]} 19. Qb4+ {[%clk 0:01:16]}
19... Kg8 {[%clk 0:01:42.3]} 20. g4 {[%clk 0:01:00.9]} 20... a5 {[%clk
0:01:30.5]} 21. Qd2 {[%clk 0:00:51.8]} 21... Ne7 {[%clk 0:01:27.5]} 22. Rd3
{[%clk 0:00:48]} 22... Kh7 {[%clk 0:01:25.8]} 23. Rd6 {[%clk 0:00:36.8]} 23...
Qc5 {[%clk 0:01:12.3]} 24. Nf3 {[%clk 0:00:34.7]} 24... g6 {[%clk 0:00:56.3]}
25. Bd3 {[%clk 0:00:33.7]} 25... Rg8 {[%clk 0:00:40.3]} 26. f5 {[%clk
0:00:28.5]} 26... gxf5 {[%clk 0:00:34.7]} 27. gxf5 {[%clk 0:00:27.5]} 27... Nxf5
{[%clk 0:00:23.9]} 28. Bxf5+ {[%clk 0:00:27.1]} 28... Kg7 {[%clk 0:00:18.7]} 29.
Be4 {[%clk 0:00:23.8]} 29... Ra6 {[%clk 0:00:11.9]} 30. Rd4 {[%clk 0:00:20.1]}
30... Rb6 {[%clk 0:00:06.9]} 31. Rxb6 {[%clk 0:00:19.8]} 31... Qxb6 {[%clk
0:00:07.8]} 32. Qf4 {[%clk 0:00:19.8]} 32... Qb1+ {[%clk 0:00:05.2]} 33. Kd2
{[%clk 0:00:20.1]} 33... Qa1 {[%clk 0:00:04.4]} 34. Qf6+ {[%clk 0:00:19.9]}
34... Kf8 {[%clk 0:00:02.7]} 35. Rd8# {[%clk 0:00:19.9]} 1-0

[Event "Late-Titled-Tuesday-Blitz-March-05-2024"]
[Site "Chess.com"]
[Date "2024.03.05"]
[Round "4"]
[White "KerryStead"]
[Black "Viktor_Poddubnyi"]
[Result "1-0"]
[WhiteElo "2054"]
[BlackElo "2266"]
[TimeControl "180+1"]
[EndTime "14:39:06 PST"]
[Termination "KerryStead won on time"]

1. d4 {[%clk 0:03:00.9]} 1... g6 {[%clk 0:03:00.3]} 2. e4 {[%clk 0:03:00.7]}
2... Bg7 {[%clk 0:03:00.8]} 3. Be3 {[%clk 0:03:01.4]} 3... d6 {[%clk 0:03:00.6]}
4. Qd2 {[%clk 0:03:01]} 4... a6 {[%clk 0:03:00.1]} 5. Ne2 {[%clk 0:02:59]} 5...
b5 {[%clk 0:02:59.2]} 6. a4 {[%clk 0:02:58.8]} 6... Bb7 {[%clk 0:02:55.4]} 7. f3
{[%clk 0:02:58.3]} 7... Nd7 {[%clk 0:02:46.8]} 8. Na3 {[%clk 0:02:56.2]} 8... c6
{[%clk 0:02:35.4]} 9. c4 {[%clk 0:02:45.2]} 9... Ngf6 {[%clk 0:02:14.3]} 10.
axb5 {[%clk 0:02:37.4]} 10... axb5 {[%clk 0:02:13.6]} 11. cxb5 {[%clk
0:02:31.7]} 11... cxb5 {[%clk 0:02:13.3]} 12. Nc1 {[%clk 0:02:21.8]} 12... Bc6
{[%clk 0:01:22.9]} 13. d5 {[%clk 0:02:17.4]} 13... Bb7 {[%clk 0:01:21.7]} 14.
Bxb5 {[%clk 0:02:14.9]} 14... O-O {[%clk 0:01:21.8]} 15. O-O {[%clk 0:02:14]}
15... Nc5 {[%clk 0:01:12.4]} 16. Nc2 {[%clk 0:01:59.8]} 16... Rxa1 {[%clk
0:01:09.6]} 17. Nxa1 {[%clk 0:02:00.7]} 17... Qb8 {[%clk 0:00:59.7]} 18. Bc4
{[%clk 0:01:50.4]} 18... Ba6 {[%clk 0:00:53.1]} 19. Bxa6 {[%clk 0:01:48.1]}
19... Nxa6 {[%clk 0:00:52.5]} 20. Nab3 {[%clk 0:01:47.4]} 20... Nd7 {[%clk
0:00:51.4]} 21. Bd4 {[%clk 0:01:44.4]} 21... Ne5 {[%clk 0:00:47.5]} 22. Rd1
{[%clk 0:01:32.6]} 22... Qb7 {[%clk 0:00:41.6]} 23. Na5 {[%clk 0:01:27.1]} 23...
Qb5 {[%clk 0:00:37]} 24. Qc3 {[%clk 0:01:18.8]} 24... Nc5 {[%clk 0:00:19.5]} 25.
Nc6 {[%clk 0:01:13.7]} 25... Na4 {[%clk 0:00:05.3]} 26. Nxe7+ {[%clk 0:01:04.6]}
26... Kh8 {[%clk 0:00:05.6]} 27. Qb3 {[%clk 0:00:59.9]} 27... Qxb3 {[%clk
0:00:05.7]} 28. Nxb3 {[%clk 0:00:58.4]} 28... Rb8 {[%clk 0:00:06.2]} 29. Na5
{[%clk 0:00:52.3]} 29... Nxb2 {[%clk 0:00:05.9]} 30. Rb1 {[%clk 0:00:50.3]}
30... Nxf3+ {[%clk 0:00:05.8]} 31. gxf3 {[%clk 0:00:47.1]} 31... Bxd4+ {[%clk
0:00:06.1]} 32. Kg2 {[%clk 0:00:45.4]} 32... Ra8 {[%clk 0:00:04.5]} 33. Nac6
{[%clk 0:00:43.8]} 33... Bg7 {[%clk 0:00:03.1]} 34. e5 {[%clk 0:00:36.8]} 34...
Ra2 {[%clk 0:00:03.5]} 35. Kg3 {[%clk 0:00:36.1]} 35... dxe5 {[%clk 0:00:01.9]}
36. d6 {[%clk 0:00:34.4]} 1-0

[Event "Late-Titled-Tuesday-Blitz-March-05-2024"]
[Site "Chess.com"]
[Date "2024.03.05"]
[Round "4"]
[White "chess94cu"]
[Black "Cambek64"]
[Result "1/2-1/2"]
[WhiteElo "2648"]
[BlackElo "2483"]
[TimeControl "180+1"]
[EndTime "14:39:07 PST"]
[Termination "Game drawn by repetition"]

1. Nf3 {[%clk 0:03:00.9]} 1... d5 {[%clk 0:02:58.8]} 2. c4 {[%clk 0:03:00.9]}
2... c6 {[%clk 0:02:54.9]} 3. e3 {[%clk 0:03:00.8]} 3... Nf6 {[%clk 0:02:55.1]}
4. Nc3 {[%clk 0:03:00.9]} 4... a6 {[%clk 0:02:52.5]} 5. d4 {[%clk 0:02:56.4]}
5... b5 {[%clk 0:02:52]} 6. b3 {[%clk 0:02:56.3]} 6... Bg4 {[%clk 0:02:50.8]} 7.
h3 {[%clk 0:02:49.8]} 7... Bxf3 {[%clk 0:02:49.8]} 8. Qxf3 {[%clk 0:02:49.1]}
8... e6 {[%clk 0:02:50.1]} 9. c5 {[%clk 0:02:43.3]} 9... Nbd7 {[%clk 0:02:46.4]}
10. Be2 {[%clk 0:02:33.1]} 10... Be7 {[%clk 0:02:43.9]} 11. g4 {[%clk
0:02:32.6]} 11... O-O {[%clk 0:02:43.9]} 12. g5 {[%clk 0:02:30.4]} 12... Ne8
{[%clk 0:02:42.7]} 13. h4 {[%clk 0:02:30.9]} 13... e5 {[%clk 0:02:41.7]} 14. Bd2
{[%clk 0:02:29.6]} 14... exd4 {[%clk 0:02:40.9]} 15. exd4 {[%clk 0:02:30.5]}
15... Nc7 {[%clk 0:02:40.9]} 16. Bd3 {[%clk 0:02:16.1]} 16... Ne6 {[%clk
0:02:30.4]} 17. Qf5 {[%clk 0:02:10.5]} 17... g6 {[%clk 0:02:28.5]} 18. Qg4
{[%clk 0:02:11.1]} 18... Qc8 {[%clk 0:02:20.1]} 19. Kf1 {[%clk 0:01:58.1]} 19...
f5 {[%clk 0:02:18.7]} 20. gxf6 {[%clk 0:01:51.8]} 20... Nxf6 {[%clk 0:02:15.8]}
21. Qe2 {[%clk 0:01:51]} 21... Rf7 {[%clk 0:02:00.9]} 22. Be3 {[%clk 0:01:50.5]}
22... Ng7 {[%clk 0:01:58.9]} 23. Qc2 {[%clk 0:01:43.4]} 23... Ng4 {[%clk
0:01:56.4]} 24. Re1 {[%clk 0:01:37.9]} 24... Nf5 {[%clk 0:01:48.5]} 25. Bxf5
{[%clk 0:01:28.6]} 25... Rxf5 {[%clk 0:01:35]} 26. h5 {[%clk 0:01:27.8]} 26...
Qf8 {[%clk 0:01:22.7]} 27. hxg6 {[%clk 0:01:22.5]} 27... hxg6 {[%clk 0:01:20.1]}
28. Ke2 {[%clk 0:01:22]} 28... Bg5 {[%clk 0:00:53.2]} 29. Kd1 {[%clk 0:01:16.6]}
29... Bxe3 {[%clk 0:00:49.2]} 30. fxe3 {[%clk 0:01:16.5]} 30... Nf2+ {[%clk
0:00:45.6]} 31. Kc1 {[%clk 0:01:16.4]} 31... Nxh1 {[%clk 0:00:46.1]} 32. Rxh1
{[%clk 0:01:17.3]} 32... Rf1+ {[%clk 0:00:45.9]} 33. Rxf1 {[%clk 0:01:14.4]}
33... Qxf1+ {[%clk 0:00:46.3]} 34. Kb2 {[%clk 0:01:15.3]} 34... Qf5 {[%clk
0:00:45.5]} 35. Qh2 {[%clk 0:01:15.6]} 35... b4 {[%clk 0:00:35.2]} 36. Ne2
{[%clk 0:01:14.3]} 36... Re8 {[%clk 0:00:32.1]} 37. Qg3 {[%clk 0:01:08.4]} 37...
Qd3 {[%clk 0:00:24]} 38. Nf4 {[%clk 0:01:08.5]} 38... Qd2+ {[%clk 0:00:17.8]}
39. Kb1 {[%clk 0:01:08.6]} 39... Qxe3 {[%clk 0:00:13.8]} 40. Qxg6+ {[%clk
0:01:07.5]} 40... Kh8 {[%clk 0:00:14.1]} 41. Qh6+ {[%clk 0:01:03.1]} 41... Kg8
{[%clk 0:00:14.6]} 42. Qg6+ {[%clk 0:00:49]} 42... Kf8 {[%clk 0:00:13.7]} 43.
Qf6+ {[%clk 0:00:46.2]} 43... Kg8 {[%clk 0:00:13.8]} 44. Qg6+ {[%clk 0:00:46]}
1/2-1/2